fUST/lending_fUST_20240718
["ID","MTS","AMOUNT","RATE_DAILY","PERIOD"]
[332555430,1721293838064,-165.91,0.0002178,3]
[332555432,1721293838074,-497.73,0.0002178,3]
[332555433,1721293838084,-33982.44755715,0.00021786,3]
[332555435,1721293838095,-2292.27282,0.00021786,3]
[332555436,1721293838108,-5142.30392575,0.00021786,3]
[332555438,1721293838120,-41417.0243029,0.0002179,3]
[332555439,1721293838131,-88888.0,0.00021796,3]
[332555440,1721293838141,-151.0,0.00021796,2]
[332555442,1721293838153,-151.0,0.00021796,2]
[332555443,1721293838164,-151.0,0.00021796,2]
[332555445,1721293838174,-151.0,0.00021796,2]
[332555446,1721293838183,-151.0,0.00021796,2]
[332555447,1721293838193,-151.0,0.00021796,2]
[332555449,1721293838203,-37635.60341114,0.000218,2]
[332555450,1721293838212,-2000.0,0.000218,2]
[332555452,1721293838225,-2000.0,0.000218,3]
[332555453,1721293838234,-2000.0,0.000218,4]
[332555454,1721293838244,-500.0,0.000218,2]
[332555456,1721293838254,-500.0,0.000218,2]
[332555457,1721293838264,-500.0,0.000218,2]
[332555459,1721293838274,-500.0,0.000218,2]
[332555460,1721293838284,-500.0,0.000218,2]
[332555461,1721293838293,-500.0,0.000218,2]
[332555463,1721293838303,-500.0,0.000218,2]
[332555464,1721293838313,-500.0,0.000218,2]
[332555465,1721293838323,-500.0,0.000218,7]
[332555467,1721293838333,-500.0,0.000218,7]
[332555468,1721293838343,-500.0,0.000218,7]
[332555470,1721293838352,-500.0,0.000218,7]
[332555471,1721293838362,-500.0,0.000218,7]
[332555472,1721293838372,-500.0,0.000218,7]
[332555474,1721293838383,-500.0,0.000218,7]
[332555475,1721293838392,-500.0,0.000218,7]
[332555477,1721293838402,-500.0,0.000218,7]
[332555478,1721293838411,-500.0,0.000218,7]
[332555479,1721293838421,-374.0,0.000218,2]
[332555481,1721293838431,-7670.44563535,0.000218,2]
[332555482,1721293838441,-6879.79283946,0.000218,2]
[332555483,1721293838451,-421.075971,0.000218,2]
[332555485,1721293838461,-421.075971,0.000218,2]
[332555486,1721293838471,-3000.0,0.000218,2]
[332555488,1721293838480,-151.0,0.000218,2]
[332555489,1721293838489,-3000.0,0.0002181,2]
[332555490,1721293838499,-167.379747,0.0002181,2]
[332555492,1721293838509,-151.0,0.0002181,2]
[332555493,1721293838519,-151.0,0.0002181,2]
[332555495,1721293838528,-151.0,0.0002181,2]
[332555496,1721293838537,-151.0,0.0002181,2]
[332555497,1721293838547,-435.0,0.00021819,2]
[332555499,1721293838558,-344.44752286,0.00021819,2]
[332555500,1721293838568,-3000.0,0.0002182,2]
[332555502,1721293838578,-299.66938998,0.00021829,2]
[332555503,1721293838588,-3000.0,0.0002183,2]
[332555504,1721293838598,-222.61715406,0.00021836,2]
[332555506,1721293838608,-151.0,0.00021837,2]
[332555513,1721293838766,-151.0,0.00021837,2]
[332555515,1721293838776,-3000.0,0.0002184,2]
[332555516,1721293838786,-3000.0,0.0002185,2]
[332555517,1721293838795,-507.65,0.00021852,2]
[332555519,1721293838804,-500.0,0.00021859,2]
[332555520,1721293838813,-266.2848046,0.00021859,2]
[332555522,1721293838823,-317.50230878,0.00021859,2]
[332555523,1721293838833,-500.0,0.00021859,2]
[332555524,1721293838843,-189.360413,0.00021859,2]
[332555526,1721293838852,-500.0,0.00021859,2]
[332555527,1721293838862,-318.0927113,0.00021859,2]
[332555540,1721293839149,287.22746053,0.0001212,2]
[332555572,1721293840029,-181.9072887,0.00021859,2]
[332555573,1721293840038,-500.0,0.00021859,2]
[332555575,1721293840047,-500.0,0.00021859,2]
[332555576,1721293840057,-500.0,0.00021859,2]
[332555577,1721293840067,-500.0,0.00021859,2]
[332555579,1721293840078,-250.85217225,0.00021859,2]
[332555580,1721293840089,-500.0,0.00021859,2]
[332555582,1721293840099,-500.0,0.00021859,2]
[332555583,1721293840110,-500.0,0.00021859,2]
[332555585,1721293840120,-500.0,0.00021859,2]
[332555586,1721293840130,-500.0,0.00021859,2]
[332555587,1721293840141,-500.0,0.00021859,2]
[332555589,1721293840152,-238.17858252,0.00021859,2]
[332555590,1721293840162,-500.0,0.00021859,2]
[332555592,1721293840172,-400.0,0.00021859,2]
[332555593,1721293840182,-500.0,0.00021859,2]
[332555595,1721293840191,-3000.0,0.0002186,2]
[332555596,1721293840201,-151.0,0.0002186,2]
[332555597,1721293840210,-151.0,0.0002186,2]
[332555599,1721293840221,-151.0,0.0002186,2]
[332555600,1721293840231,-151.0,0.0002186,2]
[332555602,1721293840241,-151.0,0.0002186,2]
[332555603,1721293840250,-32268.85504029,0.0002186,3]
[332555604,1721293840261,-3087.06452509,0.0002186,3]
[332555607,1721293840291,526.22799738,0.0001212,2]
[332555608,1721293840303,-6061.10473752,0.0002186,3]
[332555610,1721293840312,-151.0,0.00021869,2]
[332555611,1721293840322,-151.0,0.00021869,2]
[332555612,1721293840331,-151.0,0.00021869,2]
[332555614,1721293840340,-151.0,0.00021869,2]
[332555615,1721293840350,-151.0,0.00021869,2]
[332555617,1721293840359,-151.0,0.00021869,2]
[332555618,1721293840368,-151.0,0.00021869,2]
[332555619,1721293840378,-151.0,0.00021869,2]
[332555621,1721293840387,-151.0,0.00021869,2]
[332555622,1721293840397,-151.0,0.00021869,2]
[332555623,1721293840406,-421.075971,0.0002187,2]
[332555625,1721293840416,-421.075971,0.0002187,2]
[332555626,1721293840425,-151.0,0.0002187,2]
[332555628,1721293840434,-152.879031,0.0002187,2]
[332555629,1721293840443,-3000.0,0.0002187,2]
[332555630,1721293840452,-151.0,0.0002187,2]
[332555632,1721293840461,-151.0,0.0002187,2]
[332555633,1721293840471,-421.075971,0.00021879,2]
[332555635,1721293840480,-421.075971,0.00021879,2]
[332555636,1721293840489,-214.166686,0.00021879,2]
[332555637,1721293840499,-151.0,0.00021879,2]
[332555639,1721293840508,-255.370652,0.00021879,2]
[332555640,1721293840517,-421.075971,0.0002188,2]
[332555642,1721293840527,-421.075971,0.0002188,2]
[332555643,1721293840536,-3000.0,0.0002188,2]
[332555644,1721293840547,-151.0,0.0002188,2]
[332555646,1721293840557,-421.075971,0.00021886,2]
[332555647,1721293840566,-421.075971,0.00021886,2]
[332555649,1721293840575,-3000.0,0.00021888,2]
[332555650,1721293840585,-3000.0,0.00021888,2]
[332555651,1721293840594,-1237.80710753,0.00021888,2]
[332555653,1721293840604,-13381.07033864,0.00021889,3]
[332555654,1721293840616,-2737.91451234,0.00021889,3]
[332555757,1721293843253,-25298.03945192,0.00021889,3]
[332555758,1721293843263,-421.075971,0.00021889,2]
[332555759,1721293843273,-421.075971,0.00021889,2]
[332555760,1721293843283,-151.0,0.00021889,2]
[332555761,1721293843292,-151.0,0.00021889,2]
[332555762,1721293843301,-268.85104708,0.00021889,2]
[332555763,1721293843311,-151.0,0.00021889,2]
[332555764,1721293843322,-151.0,0.00021889,2]
[332555765,1721293843332,-151.0,0.00021889,2]
[332555766,1721293843342,-151.0,0.00021889,2]
[332555767,1721293843351,-151.0,0.00021889,2]
[332555768,1721293843361,-151.0,0.00021889,2]
[332555769,1721293843371,-151.0,0.00021889,2]
[332555770,1721293843380,-151.0,0.00021889,2]
[332555771,1721293843390,-151.0,0.00021889,2]
[332555772,1721293843400,-151.0,0.00021889,2]
[332555774,1721293843410,-151.0,0.00021889,2]
[332555776,1721293843419,-3000.0,0.0002189,2]
[332555777,1721293843429,-41417.0243029,0.00021896,3]
[332555778,1721293843438,-421.075971,0.00021896,2]
[332555780,1721293843448,-421.075971,0.00021896,2]
[332555781,1721293843457,-151.0,0.00021896,2]
[332555783,1721293843467,-151.0,0.00021896,2]
[332555784,1721293843478,-151.0,0.00021896,2]
[332555785,1721293843488,-151.0,0.00021896,2]
[332555787,1721293843497,-151.0,0.00021896,2]
[332555788,1721293843507,-151.0,0.00021896,2]
[332555790,1721293843516,-151.0,0.00021896,2]
[332555791,1721293843525,-151.0,0.00021896,2]
[332555792,1721293843534,-151.0,0.00021896,2]
[332555794,1721293843544,-151.0,0.00021896,2]
[332555795,1721293843553,-151.0,0.00021896,2]
[332555796,1721293843563,-151.0,0.00021896,2]
[332555798,1721293843572,-151.0,0.00021896,2]
[332555799,1721293843581,-151.0,0.00021896,2]
[332555801,1721293843591,-173.051342,0.00021896,2]
[332555802,1721293843600,-151.0,0.00021896,2]
[332555803,1721293843609,-151.0,0.00021896,2]
[332555805,1721293843618,-245.27376,0.00021896,2]
[332555806,1721293843628,-151.0,0.00021896,2]
[332555808,1721293843638,-151.0,0.00021896,2]
[332555809,1721293843648,-294.862827,0.00021896,2]
[332555810,1721293843658,-151.0,0.00021896,2]
[332555812,1721293843667,-151.0,0.00021896,2]
[332555813,1721293843677,-41417.0243029,0.00021896,3]
[332555815,1721293843687,-175.51961369,0.00021898,2]
[332555816,1721293843696,-1285.86401663,0.00021899,5]
[332555834,1721293844135,939.08406871,0.0001212,2]
[332555952,1721293847699,180.59770173,0.0001212,2]
[332555983,1721293848491,319.12146127,0.0001212,2]
[332556005,1721293849243,154.91034803,0.0001212,2]
[332556085,1721293851894,155.00154172,0.0001212,2]
[332556173,1721293854279,182.62668791,0.00014,2]
[332556183,1721293854495,1109.91810658,0.00015,2]
[332556294,1721293857346,159.41818647,0.0001212,2]
[332556330,1721293858272,889.01227069,0.0001212,2]
[332556332,1721293858303,404.10487158,0.0001212,2]
[332556334,1721293858336,210.01124586,0.0001212,2]
[332556347,1721293858649,304.89517306,0.0001212,2]
[332556419,1721293860574,184.32330513,0.0001212,2]
[332556449,1721293861376,663.00132953,0.0001212,2]
[332556458,1721293861739,159.39014133,0.0001212,2]
[332556538,1721293863843,155.41675991,0.0001212,2]
[332556550,1721293864127,850.0087256,0.0001212,2]
[332556610,1721293865639,268.41981886,0.00014691,2]
[332556621,1721293865904,154.84919808,0.00014691,2]
[332556636,1721293866372,518.58506655,0.0001212,2]
[332556644,1721293866559,155.92957455,0.00014691,2]
[332556703,1721293868013,165.81341808,0.00014691,2]
[332556711,1721293868203,175.25154016,0.00014691,2]
[332556734,1721293868999,309.45389783,0.00014691,2]
[332556771,1721293869915,155.00877112,0.00014691,2]
[332556798,1721293870637,155.00174319,0.0001212,2]
[332556847,1721293871945,402.67453528,0.00015,2]
[332556875,1721293872654,200.48650394,0.00014691,2]
[332556878,1721293872699,286.19618204,0.0001212,2]
[332556885,1721293872863,2110.3268078,0.00014691,2]
[332556896,1721293873145,155.79691654,0.0001212,2]
[332556933,1721293874209,304.00579052,0.00014691,2]
[332556997,1721293875875,4715.96012274,0.00014691,2]
[332557002,1721293876006,533.05958531,0.00014691,2]
[332557015,1721293876524,3778.72551572,0.00014691,2]
[332557018,1721293876563,996.16859002,0.00014691,2]
[332557023,1721293876690,494.24646208,0.00014691,2]
[332557099,1721293878832,154.86277745,0.00014691,2]
[332557127,1721293879613,2527.55779755,0.00014691,2]
[332557130,1721293879648,155.64887406,0.00014691,2]
[332557132,1721293879678,289.24111228,0.00015,2]
[332557134,1721293879708,175.52184295,0.00014691,2]
[332557148,1721293880079,199.83157053,0.00014691,2]
[332557154,1721293880229,196.54119054,0.00014691,2]
[332557156,1721293880260,4159.51665337,0.00014691,2]
[332557158,1721293880290,726.14786698,0.00014691,2]
[332557161,1721293880320,2431.25440347,0.00015,2]
[332557192,1721293881222,156.56360323,0.00014691,2]
[332557211,1721293881779,983.88041302,0.00014691,2]
[332557230,1721293882280,155.65023585,0.00014691,2]
[332557284,1721293883982,1819.73082256,0.00014691,2]
[332557316,1721293884853,196.58870445,0.00014691,2]
[332557327,1721293885151,304.19589614,0.00014691,2]
[332557446,1721293888522,6964.40811687,0.00014691,2]
[332557451,1721293888637,253.40377316,0.00014691,2]
[332557478,1721293889470,2138.36760044,0.00014691,2]
[332557525,1721293890753,196.48200413,0.00014691,2]
[332557587,1721293892684,1045.38119164,0.00015,2]
[332557601,1721293893053,154.80762319,0.00014691,2]
[332557668,1721293895000,309.16277161,0.00014691,2]
[332557948,1721293904984,404.94387342,0.00014691,2]
[332557984,1721293906257,154.79103211,0.00014691,2]
[332557996,1721293906597,156.00925741,0.00014691,2]
[332558028,1721293907612,1045.38119164,0.00015,2]
[332558072,1721293909013,566.51016595,0.00014691,2]
[332558190,1721293912891,208.24846162,0.00015,2]
[332558418,1721293920955,534.17373892,0.00014691,2]
[332558434,1721293921380,156.47742251,0.00014691,2]
[332561491,1721294013741,173.93015094,0.00014691,2]
[332563151,1721294590238,4029.67061982,9.999e-05,2]
[332563191,1721294972175,523.24612638,0.0001212,2]
[332563192,1721294974091,402.66107921,0.0001212,2]
[332563193,1721294974938,1328.19906534,0.0001212,2]
[332563194,1721294975420,663.00132953,0.0001212,2]
[332563195,1721294978017,909.86541128,0.0001212,2]
[332563196,1721294978371,182.20060893,0.00014,2]
[332563197,1721294979086,156.18658664,0.0001212,2]
[332563198,1721294979486,309.30406586,0.0001212,2]
[332563199,1721294979594,340.18246093,0.0001212,2]
[332563200,1721294980967,270.38675926,0.0001212,2]
[332563201,1721294981000,2828.244819,0.0001212,2]
[332563202,1721294981681,993.57430548,0.0001212,2]
[332563203,1721294981849,726.14786698,0.0001212,2]
[332563204,1721294984136,154.79103211,0.0001212,2]
[332563205,1721294985159,847.79900167,0.0001212,2]
[332563206,1721294986553,1106.91166223,0.00015,2]
[332563207,1721294987084,154.79103211,0.0001212,2]
[332563208,1721294987196,309.02656632,0.0001212,2]
[332563209,1721294987572,319.21055597,0.0001212,2]
[332563210,1721294988228,287.30766407,0.0001212,2]
[332563211,1721294988855,287.84707162,0.00015,2]
[332563212,1721294988911,4705.13479707,0.0001212,2]
[332563213,1721294989827,530.95109038,0.0001212,2]
[332563214,1721294990243,941.11785543,0.0001212,2]
[332563215,1721294991529,179.98099039,0.0001212,2]
[332563216,1721294992158,2154.432864,0.0001212,2]
[332563217,1721294993291,2425.643977,0.00015,2]
[332563218,1721294994229,240.27901755,0.0001212,2]
[332563219,1721294994278,155.14496551,0.0001212,2]
[332563220,1721294994424,518.73589083,0.0001212,2]
[332563221,1721294994797,154.79103211,0.0001212,2]
[332563222,1721294996211,3036.52669636,0.0001212,2]
[332563223,1721294996380,209.53568661,0.0001212,2]
[332563224,1721294996833,154.79103211,0.0001212,2]
[332563225,1721294996864,885.68093159,0.0001212,2]
[332563226,1721294998808,200.25468828,0.0001212,2]
[332563227,1721295000988,525.89628869,0.0001212,2]
[332563228,1721295001247,309.45725408,0.00015,2]
[332563229,1721295001820,154.79103211,0.0001212,2]
[332563230,1721295003786,272.36372956,0.0001212,2]
[332563231,1721295004605,403.08254894,0.0001212,2]
[332563232,1721295006085,154.79103211,0.0001212,2]
[332563234,1721295013896,195.80856601,0.0001212,2]
[332563235,1721295014701,377.20712064,0.0001212,2]
[332563236,1721295014764,154.79103211,0.0001212,2]
[332563237,1721295016713,993.84320623,0.0001212,2]
[332563238,1721295019024,309.30406586,0.0001212,2]
[332563239,1721295020939,5511.47943235,0.0001212,2]
[332563240,1721295021414,154.79103211,0.0001212,2]
[332563241,1721295021697,209.56819686,0.0001212,2]
[332563242,1721295023645,309.02656632,0.0001212,2]
[332563243,1721295025722,663.18017951,0.0001212,2]
[332563244,1721295026801,302.2938974,0.0001212,2]
[332563245,1721295027402,154.79103211,0.00014691,2]
[332563246,1721295027972,271.97172117,0.00014691,2]
[332563247,1721295028192,309.02656632,0.00014691,2]
[332563248,1721295028392,904.88979558,0.00015,2]
[332563249,1721295028424,182.20060893,0.00014,2]
[332563250,1721295028469,180.18721856,0.00014691,2]
[332563251,1721295030077,196.8531973,0.00014691,2]
[332563252,1721295030134,848.0314238,0.00014691,2]
[332563253,1721295031108,524.3970699,0.0001212,2]
[332563277,1721295031780,154.79103211,0.00014691,2]
[332563297,1721295032086,402.67453528,0.00015,2]
[332563327,1721295034057,533.05958531,0.0001212,2]
[332563328,1721295034847,154.79103211,0.00014691,2]
[332563329,1721295036239,530.95109038,0.0001212,2]
[332563330,1721295036532,319.21055597,0.0001212,2]
[332563331,1721295037137,165.15453661,0.00014691,2]
[332563332,1721295037804,154.79103211,0.00014691,2]
[332563381,1721295038295,-150.0,0.000189,2]
[332563383,1721295038306,-166.666666,0.00018932,2]
[332563385,1721295038318,-23854.67009601,0.00019075,2]
[332563387,1721295038331,-1045.32990399,0.00019075,2]
[332563390,1721295038342,-2159.5085471,0.00019213,2]
[332563392,1721295038355,-301.5382687,0.00019234,2]
[332563394,1721295038364,-166.666666,0.00019448,2]
[332563396,1721295038375,-157.470965,0.00019492,2]
[332563398,1721295038385,-157.470965,0.00019546,2]
[332563400,1721295038394,-157.470965,0.00019599,2]
[332563402,1721295038403,-157.470965,0.00019652,2]
[332563404,1721295038413,-157.470965,0.00019706,2]
[332563406,1721295038424,-157.470965,0.00019759,2]
[332563408,1721295038434,-157.470965,0.00019813,2]
[332563410,1721295038444,-157.470965,0.00019866,2]
[332563412,1721295038454,-157.470965,0.0001992,2]
[332563415,1721295038464,-166.666666,0.00019964,2]
[332563416,1721295038473,-157.470965,0.00019973,2]
[332563418,1721295038483,-297.0,0.00019999,2]
[332563421,1721295038493,-6879.79283946,0.0002,2]
[332563423,1721295038502,-157.470965,0.00020027,2]
[332563425,1721295038515,-157.470965,0.0002008,2]
[332563427,1721295038526,-157.470965,0.00020134,2]
[332563430,1721295038538,-157.470965,0.00020187,2]
[332563432,1721295038548,-157.470965,0.0002024,2]
[332563434,1721295038560,-157.470965,0.00020294,2]
[332563436,1721295038570,-157.470965,0.00020347,2]
[332563438,1721295038579,-157.470965,0.00020401,2]
[332563440,1721295038588,-157.470965,0.00020454,2]
[332563442,1721295038597,-166.666666,0.0002048,2]
[332563444,1721295038606,-157.470965,0.00020508,2]
[332563446,1721295038615,-1003.59708528,0.00020996,2]
[332563448,1721295038624,-166.666666,0.00020996,2]
[332563450,1721295038634,-299.66938998,0.00021,2]
[332563452,1721295038643,-248.15366783,0.00021,2]
[332563454,1721295038653,-150.112233,0.00021,2]
[332563456,1721295038663,-5856.78,0.00021,2]
[332563458,1721295038673,-30000.0,0.00021012,2]
[332563460,1721295038682,-168.941514,0.00021096,2]
[332563462,1721295038691,-374.793658,0.00021096,2]
[332563464,1721295038701,-153.0,0.00021096,2]
[332563466,1721295038711,-1407.0,0.00021161,2]
[332563468,1721295038720,-1742.0,0.000212,2]
[332563470,1721295038730,-166.666666,0.0002137,2]
[332563472,1721295038739,-166.666666,0.00021513,2]
[332563474,1721295038748,-151.0,0.00021565,2]
[332563476,1721295038757,-151.0,0.00021565,2]
[332563478,1721295038767,-1003.59708521,0.00021597,2]
[332563480,1721295038776,-151.0,0.00021653,2]
[332563482,1721295038785,-151.0,0.00021653,2]
[332563484,1721295038794,-151.1267983,0.0002171,2]
[332563486,1721295038804,-151.0,0.00021741,2]
[332563488,1721295038813,-151.0,0.00021741,2]
[332563490,1721295038822,-151.12679829,0.00021764,2]
[332563492,1721295038831,-331.82,0.00021796,3]
[332563494,1721295038840,-165.91,0.00021796,3]
[332563496,1721295038849,-497.74,0.00021796,3]
[332563498,1721295038865,-374.0,0.000218,2]
[332563501,1721295038880,-3000.0,0.000218,2]
[332563503,1721295038889,-40395.16302712,0.00021806,3]
[332563505,1721295038904,-48492.83697288,0.00021806,3]
[332563507,1721295038914,-3000.0,0.0002181,2]
[332563509,1721295038924,-3000.0,0.0002182,2]
[332563512,1721295038935,-151.0,0.00021829,2]
[332563514,1721295038944,-151.0,0.00021829,2]
[332563516,1721295038954,-3000.0,0.0002183,2]
[332563518,1721295038964,-3000.0,0.0002184,2]
[332563520,1721295038976,-3000.0,0.0002185,2]
[332563522,1721295038986,-3000.0,0.0002186,2]
[332563524,1721295038996,-3000.0,0.0002187,2]
[332563526,1721295039006,-3000.0,0.0002188,2]
[332563528,1721295039016,-4407.056665,0.0002189,2]
[332563531,1721295039026,-151.0,0.00021896,2]
[332563533,1721295039036,-151.0,0.00021896,2]
[332563535,1721295039046,-151.0,0.00021896,2]
[332563537,1721295039055,-151.0,0.00021896,2]
[332563539,1721295039065,-151.0,0.00021896,2]
[332563541,1721295039075,-151.0,0.00021896,2]
[332563543,1721295039085,-151.0,0.00021896,2]
[332563545,1721295039095,-151.0,0.00021896,2]
[332563547,1721295039105,-22848.17894594,0.00021899,2]
[332563549,1721295039115,-748.0,0.000219,2]
[332563551,1721295039124,-748.0,0.000219,2]
[332563554,1721295039134,-748.0,0.000219,2]
[332563556,1721295039144,-2500.0,0.000219,2]
[332563558,1721295039155,-16902.21052771,0.000219,2]
[332563560,1721295039164,-374.0,0.000219,2]
[332563562,1721295039174,-300.0,0.000219,9]
[332563564,1721295039184,-150.112233,0.000219,5]
[332563566,1721295039194,-151.0,0.000219,2]
[332563568,1721295039204,-151.0,0.000219,2]
[332563570,1721295039214,-151.0,0.000219,2]
[332563572,1721295039223,-151.0,0.000219,2]
[332563574,1721295039233,-49737.66805765,0.00021906,2]
[332563576,1721295039243,-151.0,0.00021906,2]
[332563578,1721295039253,-151.0,0.00021906,2]
[332563580,1721295039262,-151.0,0.00021906,2]
[332563582,1721295039276,-151.0,0.00021906,2]
[332563584,1721295039286,-151.0,0.00021906,2]
[332563586,1721295039296,-151.0,0.00021906,2]
[332563588,1721295039305,-151.0,0.00021906,2]
[332563591,1721295039316,-425.565,0.00021906,2]
[332563593,1721295039332,-3200.0,0.00021906,2]
[332563595,1721295039343,-151.0,0.00021907,2]
[332563597,1721295039353,-151.0,0.00021907,2]
[332563600,1721295039364,-151.0,0.00021907,2]
[332563602,1721295039373,-151.0,0.00021907,2]
[332563604,1721295039383,-157.300283,0.00021907,2]
[332563607,1721295039392,-157.300283,0.00021907,2]
[332563609,1721295039401,-151.0,0.00021907,2]
[332563611,1721295039413,-151.0,0.00021907,2]
[332563613,1721295039422,-151.0,0.00021907,2]
[332563615,1721295039433,-151.0,0.00021907,2]
[332563617,1721295039443,-151.0,0.00021907,2]
[332563619,1721295039452,-186.39936322,0.00021916,2]
[332563621,1721295039462,-500.0,0.00021916,2]
[332563623,1721295039472,-222.25161614,0.00021916,2]
[332563625,1721295039483,-632.55228911,0.00021916,2]
[332563627,1721295039492,-500.0,0.00021916,2]
[332563629,1721295039502,-500.0,0.00021916,2]
[332563631,1721295039512,-500.0,0.00021916,2]
[332563633,1721295039522,-500.0,0.00021916,2]
[332563635,1721295039532,-505.42435886,0.00021916,2]
[332563637,1721295039543,-500.0,0.00021916,2]
[332563639,1721295039553,-500.0,0.00021916,2]
[332563641,1721295039563,-500.0,0.00021916,2]
[332563643,1721295039573,-500.0,0.00021916,2]
[332563646,1721295039584,-500.0,0.00021916,2]
[332563649,1721295039599,-500.0,0.00021916,2]
[332563651,1721295039609,-500.0,0.00021916,2]
[332563653,1721295039619,-500.0,0.00021916,2]
[332563655,1721295039628,-16477.76664787,0.00021917,5]
[332563657,1721295039639,-505.3477715,0.00021917,5]
[332563667,1721295039648,-6.08290231,0.00021917,2]
[332563668,1721295039837,-500.0,0.00021917,2]
[332563669,1721295039848,-280.29,0.00021917,2]
[332563670,1721295039860,-500.0,0.00021917,2]
[332563671,1721295039871,-500.0,0.00021917,2]
[332563672,1721295039880,-500.0,0.00021917,2]
[332563674,1721295039889,-520.91606924,0.00021917,2]
[332563676,1721295039899,-583.60933137,0.00021917,2]
[332563678,1721295039910,-500.0,0.00021917,2]
[332563680,1721295039919,-500.0,0.00021917,2]
[332563682,1721295039928,-500.0,0.00021917,2]
[332563684,1721295039941,-380.67439876,0.00021917,2]
[332563686,1721295039951,-500.0,0.00021917,2]
[332563688,1721295039961,-607.0793129,0.00021917,2]
[332563690,1721295039971,-528.7983058,0.00021917,2]
[332563692,1721295039980,-500.0,0.00021917,2]
[332563694,1721295039989,-500.0,0.00021917,2]
[332563696,1721295039998,-500.0,0.00021917,2]
[332563698,1721295040007,-504.20490734,0.00021917,2]
[332563699,1721295040016,-500.0,0.00021917,2]
[332563702,1721295040027,-321.9255643,0.00021917,2]
[332563704,1721295040037,-500.0,0.00021917,2]
[332563706,1721295040047,-500.0,0.00021917,2]
[332563708,1721295040057,-500.0,0.00021917,2]
[332563710,1721295040069,-476.66064937,0.00021917,2]
[332563712,1721295040078,-401.34355012,0.00021917,2]
[332563714,1721295040087,-500.0,0.00021917,2]
[332563716,1721295040097,-358.23991,0.00021917,2]
[332563718,1721295040106,-500.0,0.00021917,2]
[332563720,1721295040115,-500.0,0.00021917,2]
[332563722,1721295040124,-500.0,0.00021917,2]
[332563724,1721295040133,-500.0,0.00021917,2]
[332563726,1721295040142,-553.31,0.00021917,2]
[332563728,1721295040152,-500.0,0.00021917,2]
[332563730,1721295040164,-500.0,0.00021917,2]
[332563732,1721295040173,-512.85033136,0.00021917,2]
[332563734,1721295040182,-426.31547947,0.00021917,2]
[332563736,1721295040192,-685.55,0.00021917,2]
[332563738,1721295040201,-500.0,0.00021917,2]
[332563740,1721295040210,-500.0,0.00021917,2]
[332563742,1721295040220,-500.0,0.00021917,2]
[332563744,1721295040229,-500.0,0.00021917,2]
[332563746,1721295040238,-1056.47,0.00021917,2]
[332563748,1721295040247,-500.0,0.00021917,2]
[332563750,1721295040257,-500.0,0.00021917,2]
[332563751,1721295040266,-500.0,0.00021917,2]
[332563753,1721295040278,-740.39,0.00021917,2]
[332563755,1721295040287,-500.0,0.00021917,2]
[332563758,1721295040297,-1071.09,0.00021917,2]
[332563761,1721295040306,-500.0,0.00021917,2]
[332563764,1721295040317,-634.34,0.00021917,2]
[332563766,1721295040326,-501.96576769,0.00021917,2]
[332563768,1721295040335,-603.99930995,0.00021917,2]
[332563770,1721295040344,-500.0,0.00021917,2]